Cogmind - Beta 14 @@@ ROGUE MODE // 2025.03.15 @ 09:32:32 Player: winnking222 Result: Destroyed by AJ-0TD(R) with Subdweller Machine Gun Performance ------------- Evolutions (0) 0 Regions Visited (3) 600 Robots Destroyed (38) 190 Value Destroyed (931) 931 Prototype IDs (13) 260 Alien Tech Used (0) 0 Bonus (0) 0 TOTAL SCORE: 1981 Bonus ------- None Cogmind --------- Core Integrity 0/250 Matter 273/300 Energy 200/200 System Corruption 0% Temperature Cool (0) Movement Treading (260) Ox1 Location -10/Subcaves Parts ------- > --- POWER (1) -------- Subdweller Power Source > --- PROPULSION (2) --- Spiked Treads Subdweller Monowheel > --- UTILITY (2) ------ Medium Storage Unit Medium Armor Plating > --- WEAPON (2) ------- Subdweller Machine Gun Makeshift Shrapnel Gun > --- INVENTORY (10) --- Subdweller Power Source Improved Heat Sink Hacking Suite Makeshift Hacking Suite Makeshift System Shield Subdweller Laser Subdweller Laser Subdweller Shrapnel Launcher Mining Laser Peak State ------------ > --- POWER ------------ Subdweller Power Source > --- PROPULSION ------- Spiked Treads Subdweller Monowheel > --- UTILITY ---------- Medium Storage Unit Medium Armor Plating > --- WEAPON ----------- Heavy Battle Rifle Makeshift Shrapnel Gun > --- INVENTORY -------- Subdweller Power Source Improved Heat Sink Hacking Suite Makeshift Hacking Suite Makeshift System Shield Subdweller Laser Subdweller Laser Subdweller Machine Gun Subdweller Shrapnel Launcher Mining Laser [Rating: 19] Favorites ----------- Power Improved Ion Engine Engine Improved Ion Engine Power Core Light Nuclear Core Propulsion Light Treads Treads Light Treads Wheel Subdweller Monowheel Utility Medium Storage Unit Storage Medium Storage Unit Protection Hardened Light Armor Plating Weapon Improved Assault Rifle Energy Gun Improved Medium Laser Energy Cannon Beam Cannon Ballistic Gun Improved Assault Rifle Special Weapon Mining Laser Build | -11 -10 -10 -10 ------- Run | Yrd Mat Min Sub Slots Evolved . | . . . . Power . | . . . . Propulsion . | . . . . Utility . | . . . . Weapon . | . . . . Parts Attached 46 | 6 9 7 24 Power 4 | 1 . 1 2 Engine 3 | 1 . . 2 Core 1 | . . 1 . Reactor . | . . . . Propulsion 9 | 2 1 2 4 Treads 7 | 2 1 2 2 Leg . | . . . . Wheel 2 | . . . 2 Hover . | . . . . Flight . | . . . . Utility 5 | 1 2 . 2 Device . | . . . . Storage 2 | 1 1 . . Processor . | . . . . Hackware . | . . . . Protection 3 | . 1 . 2 Artifact . | . . . . Weapon 28 | 2 6 4 16 Energy Gun 4 | 2 2 . . Energy Cannon 1 | . 1 . . Ballistic Gun 17 | . 3 3 11 Ballistic Cannon . | . . . . Launcher . | . . . . Special Weapon 6 | . . 1 5 Impact Weapon . | . . . . Slashing Weapon . | . . . . Piercing Weapon . | . . . . Special Melee Weapon . | . . . . Unidentified Prototypes 2 | . 2 . . Parts Lost 3 | . . . 3 Power 1 | . . . 1 Propulsion . | . . . . Utility 1 | . . . 1 Weapon 1 | . . . 1 Highest Loss Streak 1 | . . . 1 To Critical Strikes 1 | . . . 1 Average Slot Usage (%) 98 | . 97 100 99 Engine 10 | . 14 . 12 Core 3 | . . 13 . Treads 24 | . 28 28 20 Wheel 3 | . . . 7 Storage 14 | . 14 14 14 Protection 13 | . 12 14 14 Energy Gun 6 | . 14 9 . Ballistic Gun 20 | . 12 18 27 Peak Build Rating 19 | 6 14 16 19 Average Rating 14 | 3 12 15 16 On Entrance 8 | . 6 14 15 Naked Turns . | . . . . Heaviest Build 29 | 14 26 26 29 Greatest Support 40 | 40 40 40 40 Greatest Overweight (x) 2 | 2 . . 1 Average Overweight (x) . | . . . . Largest Inventory Capacity 10 | 8 10 10 10 Average Capacity 9 | 6 9 10 10 Most Carried 10 | 5 10 10 10 Average Carried 9 | 2 8 9 9 Final Capacity 10 | 8 10 10 10 Final Carried 10 | 2 10 10 9 Class Distribution -------------------- 100% | Mutant Dominant Class ---------------- Mutant | -10/Materials Mutant | -10/Mines Mutant | -10/Subcaves Resources | -11 -10 -10 -10 ----------- Run | Yrd Mat Min Sub Matter Collected 1538 | 260 269 305 704 Remotely . | . . . . Salvage Created 1289 | . 636 246 407 Parts 80 | . 41 11 28 Haulers Intercepted . | . . . . Recyclers Shooed 1 | . 1 . . Parts Field Recycled . | . . . . Retrieved Matter . | . . . . Parts Self-Destructed 21 | . . . 21 Prevented . | . . . . Kills | -11 -10 -10 -10 ------- Run | Yrd Mat Min Sub Combat Hostiles Destroyed 32 | . 9 11 12 Guns 32 | . 9 11 12 Classes Destroyed 11 | . 6 3 2 Worker 2 | . 2 . . Tunneler 1 | . . 1 . Recycler 2 | . 2 . . Operator 3 | . 3 . . Turret 2 | . . . 2 Watcher 3 | . 3 . . Swarmer 8 | . 3 1 4 Grunt 7 | . 6 1 . Sentry 2 | . . 2 . Subdweller 8 | . . . 8 Assembled 7 | . . 7 . Best Kill Streak 4 | . 4 3 4 Combat Bots Only 4 | . 4 3 4 Max Kills in Single Turn 1 | . 1 1 1 Gunslinging . | . . . . Exploded . | . . . . Melee . | . . . . Uniques/NPCs Destroyed . | . . . . Combat | -11 -10 -10 -10 -------- Run | Yrd Mat Min Sub Hostile Shots Fired 209 | . 30 43 136 Missed 64 | . 7 18 39 Damage Taken 1836 | . 258 376 1202 Core 265 | . 24 57 184 Absorbed by Shields . | . . . . Core Remaining (%) 100 | 100 . . . Volleys Fired 132 | . 46 34 52 Largest 2 | . 2 2 2 Hottest 100 | . 90 100 100 Shots Fired 250 | . 92 61 97 Gun 236 | . 92 54 90 Cannon . | . . . . Launcher . | . . . . Special 14 | . . 7 7 Kinetic 168 | . 43 35 90 Thermal 79 | . 46 26 7 Explosive . | . . . . Electromagnetic 3 | . 3 . . Robot Hit Streak 25 | . 8 7 25 Robot Miss Streak 6 | . 6 4 3 Penetration Max . | . . . . Secondary Targets 3 | . . 1 2 Max Gunslinging Chain 1 | . . 1 1 Shots Hit Robots 143 | . 50 30 63 Core Hits 65 | . 23 18 24 Critical Kills . | . . . . Critical Parts Destroyed 1 | . . 1 . Critical Strikes 4 | . 2 2 . Burn 2 | . 1 1 . Destroy 1 | . . 1 . Corrupt 1 | . 1 . . Melee Attacks . | . . . . Impact . | . . . . Slashing . | . . . . Piercing . | . . . . Sneak Attacks . | . . . . Combat Hostiles . | . . . . Follow-up Attacks . | . . . . Damage Inflicted 2483 | . 819 456 1208 Guns 2483 | . 819 456 1208 Cannons . | . . . . Explosions . | . . . . Melee . | . . . . Ramming . | . . . . Kinetic 1846 | . 374 264 1208 Thermal 594 | . 402 192 . Explosive . | . . . . Electromagnetic 43 | . 43 . . Impact . | . . . . Slashing . | . . . . Piercing . | . . . . Highest Corruption . | . . . . Average Corruption . | . . . . Corruption Purged . | . . . . Corruption Blocked . | . . . . Overload Shots . | . . . . Overflow Damage . | . . . . Projectiles . | . . . . Explosions . | . . . . Melee . | . . . . Knockbacks . | . . . . Impact . | . . . . Kinetic . | . . . . Secondary . | . . . . Self-Inflicted Damage . | . . . . Shots . | . . . . Rammed . | . . . . Targets Rammed . | . . . . Kicked . | . . . . Crushed . | . . . . Highest Temperature 351 | . 230 351 14 Average Temperature 95 | . 71 128 8 Received Heat Transfer 537 | . 117 54 366 Effects 3 | . . 3 . Interference 1 | . . 1 . Matter Decay 1 | . . 1 . Short Circuit 1 | . . 1 . Siege Activations . | . . . . Robots Corrupted . | . . . . Combat Hostiles . | . . . . Parts Fried . | . . . . Impact Corruptions . | . . . . Robots Melted . | . . . . Combat Hostiles . | . . . . Parts Melted . | . . . . Heat Transferred 1443 | . 962 481 . Parts Sabotaged . | . . . . Parts Stolen . | . . . . Parts Stripped . | . . . . Power Chain Reactions . | . . . . Alert | -11 -10 -10 -10 ------- Run | Yrd Mat Min Sub Peak Influence 222 | . 222 144 . Initial 53 | . . 53 . Average 61 | . 65 58 . Maximum Alert Level 1 | . 1 . . Low Security (%) 97 | 100 95 100 . Level 1 2 | . 4 . . Level 2 . | . . . . Level 3 . | . . . . Level 4 . | . . . . Level 5 . | . . . . High Security . | . . . . Max Security . | . . . . Squads Dispatched 2 | . 2 . . Investigation . | . . . . Extermination . | . . . . Reinforcement 2 | . 2 . . Assault . | . . . . Garrison . | . . . . Intercept . | . . . . Searches Triggered . | . . . . Construction Impeded . | . . . . Haulers Reinforced . | . . . . Active Scanning Responses . | . . . . Cargo Convoy Interrupts . | . . . . Stealth | -11 -10 -10 -10 --------- Run | Yrd Mat Min Sub Distress Signals . | . . . . Communications Jammed . | . . . . Distress Signals . | . . . . Times Spotted 50 | . 19 15 16 Peak Tracking Total 4 | . 3 3 4 Tactical Retreats 6 | . 1 2 3 Traps | -11 -10 -10 -10 ------- Run | Yrd Mat Min Sub Traps Triggered 1 | . . . 1 Indirectly . | . . . . Trap Hack Attempts . | . . . . Triggered . | . . . . Disarmed . | . . . . Reprogrammed . | . . . . Reused . | . . . . Traps Extracted . | . . . . Installed . | . . . . Triggered . | . . . . Machines | -11 -10 -10 -10 ---------- Run | Yrd Mat Min Sub Machines Disabled 3 | . . . 3 Max in Single Turn 1 | . . . 1 Machines Repaired . | . . . . Machines Dismantled . | . . . . Machines Sabotaged . | . . . . Overloaded Fab Kills . | . . . . Hacking | -11 -10 -10 -10 --------- Run | Yrd Mat Min Sub Machines Accessed 4 | . 2 . 2 Terminals 2 | . 2 . . Fabricators . | . . . . Repair Stations . | . . . . Recycling Units . | . . . . Scanalyzers . | . . . . Garrison Access . | . . . . Total Hacks 18 | . 4 . 14 Successful 16 | . 2 . 14 Failed 2 | . 2 . . Catastrophic . | . . . . Database Lockouts . | . . . . Manual 2 | . 2 . . Terminals 4 | . 4 . . Fabricators . | . . . . Repair Stations . | . . . . Recycling Units . | . . . . Scanalyzers . | . . . . Garrison Access . | . . . . Terminal Hacks 16 | . 2 . 14 Record 13 | . . . 13 Branch Access Points 1 | . 1 . . Emergency Access Points 1 | . 1 . . Derelict Proto ID Bank 1 | . . . 1 Fabricator Hacks . | . . . . Repair Station Hacks . | . . . . Recycling Unit Hacks . | . . . . Scanalyzer . | . . . . Garrison Access Hacks . | . . . . Unauthorized Hacks . | . . . . Terminals . | . . . . Fabricators . | . . . . Repair Stations . | . . . . Recycling Units . | . . . . Scanalyzers . | . . . . Garrison Access . | . . . . Data Cores Recovered 1 | . 1 . . Used . | . . . . Hacking Detections 1 | . 1 . . Full Trace Events . | . . . . Feedback Events . | . . . . Feedback Blocked . | . . . . Robot Schematics Acquired . | . . . . Robots Built . | . . . . Authchips . | . . . . Time . | . . . . Total Robot Build Rating . | . . . . Part Schematics Acquired . | . . . . Parts Built . | . . . . Authchips . | . . . . Time . | . . . . Total Part Build Rating . | . . . . Parts Repaired . | . . . . Time . | . . . . Parts Recycled . | . . . . Recycled Matter . | . . . . Retrieved Matter . | . . . . Retrieved Components . | . . . . Parts Scanalyzed . | . . . . Part Schematics Acquired . | . . . . Parts Damaged . | . . . . Bothacking | -11 -10 -10 -10 ------------ Run | Yrd Mat Min Sub Used RIF Installer . | . . . . Robots Hacked . | . . . . Non-combat . | . . . . Combat . | . . . . Robot Hacks Applied . | . . . . Relay Couplers Released . | . . . . Fabnet Peak Effective % . | . . . . Robots Rewired . | . . . . Allies Hacked . | . . . . Hacks Repelled . | . . . . Allies | -11 -10 -10 -10 -------- Run | Yrd Mat Min Sub Total Allies 1 | . . 1 . Largest Group 1 | . . 1 1 Highest-Rated Group 31 | . . 31 31 Highest-Rated Ally 31 | . . 31 31 Total Orders . | . . . . Ally Attacks . | . . . . Total Damage . | . . . . Kills . | . . . . Allies Corrupted . | . . . . Allies Melted . | . . . . Intel | -11 -10 -10 -10 ------- Run | Yrd Mat Min Sub Robot Analysis Total . | . . . . Derelict Logs Recovered 3 | . . 1 2 Drone Launches . | . . . . Drone Recoveries . | . . . . Exploration | -11 -10 -10 -10 ------------- Run | Yrd Mat Min Sub Turns Passed 4514 | 57 1304 1005 2148 Spaces Moved 2490 | 39 679 511 1261 Core 18 | 18 . . . Treads 1736 | 21 679 511 525 Legs . | . . . . Wheels 736 | . . . 736 Hover . | . . . . Flight . | . . . . Fastest Speed 50 | 50 160 160 120 Average Speed 149 | 116 160 160 140 Slowest Speed 260 | 160 160 160 260 Overloaded Moves . | . . . . Propulsion Burnouts . | . . . . Robots Hopped . | . . . . Cave-ins Triggered . | . . . . Exploration Rate (%) 61 | 3 77 96 70 Regions Visited 3 Branch Regions 2 Pre-discovered Areas 2 | . . 1 1 Known Exits Taken 1 | . 1 . . Unknown Exits Taken 2 | 1 . 1 . Scrap Searched 16 | . . 3 13 Spaces Dug . | . . . . Terrain Destroyed . | . . . . Melee . | . . . . Projectile . | . . . . AOE . | . . . . Terrain Rammed . | . . . . Walls Destroyed . | . . . . Machines Disabled . | . . . . Actions | -11 -10 -10 -10 --------- Run | Yrd Mat Min Sub Total 3005 | 49 810 625 1521 Wait 270 | . 45 64 161 Move 2487 | 38 678 510 1261 Hop . | . . . . Pick Up 40 | 5 20 4 11 Fast Attach 4 | 3 . . 1 Attach 12 | 3 5 . 4 Detach . | . . . . Swap 30 | . 4 7 19 Drop 30 | . 12 6 12 Fire 132 | . 46 34 52 Melee . | . . . . Ram . | . . . . Kick . | . . . . Crush . | . . . . Escape Stasis . | . . . . Rewire . | . . . . Trap . | . . . . Miscellaneous . | . . . . Route ------- -11/Scrapyard -10/Materials (discovered 4 exits: [*Mat x2] / *Min x2) -10/Mines (discovered 3 exits: [*Mat x2] / *Sub) -10/Subcaves (discovered 3 exits: *Mat x2 / *Rec) History --------- Turn | Location | Event 9 | -11/Scrapyard | Discovered new exit (range 15) 58 | -11/Scrapyard | Entered Materials 193 | -10/Materials | Discovered new exit (range 8) 313 | -10/Materials | Build established: Mutant 322 | -10/Materials | Identified exit to Mines 976 | -10/Materials | Discovered new exit (range 8) 1362 | -10/Materials | Entered Mines 1385 | -10/Mines | Discovered new exit (range 9) 1493 | -10/Mines | Discovered new exit (range 10) 1860 | -10/Mines | Found a damaged Exp. Sensor Array with a note attached 1932 | -10/Mines | Assembled infested the area 2278 | -10/Mines | Received a Mining Laser from a helpful Derelict 2364 | -10/Mines | Discovered new exit (range 3) 2367 | -10/Mines | Entered Subcaves 2367 | -10/Subcaves | Accompanied by 1 ally 2418 | -10/Subcaves | Shifting Twisted Machinery released Sub. Laser 2422 | -10/Subcaves | Shifting Twisted Machinery released Mak. System Shield 2446 | -10/Subcaves | Shifting Twisted Machinery released Sub. Shrapnel Launcher 2448 | -10/Subcaves | Shifting Twisted Machinery released Sub. Laser 2889 | -10/Subcaves | Learned location of Zion (-7) 2889 | -10/Subcaves | Met a Zionite searching for "candidates" 3456 | -10/Subcaves | Discovered new exit (range 9) 3831 | -10/Subcaves | Visited 4L-MR0's lab 3904 | -10/Subcaves | Visited Clippyterm 3906 | -10/Subcaves | Learned Materials security intel 3907 | -10/Subcaves | Identified exit to Materials 3907 | -10/Subcaves | Identified exit to Recycling 3907 | -10/Subcaves | Learned 40 Factory zone layouts 4048 | -10/Subcaves | Core integrity fell below 50% 4178 | -10/Subcaves | Disturbed a concealed Subdweller 4250 | -10/Subcaves | Core integrity fell below 20% 4515 | -10/Subcaves | Destroyed by AJ-0TD(R) with Subdweller Machine Gun Last Messages --------------- 04170_ Found Slug Cannon. 04170_ Found 48 Matter. 04171_ Dropped Imp. Assault Rifle. 04174_ Acquired Mak. Shrapnel Gun. 04178_ FL-9MH(R) angrily emerges from the Twisted Machinery. 04188_ FL-9MH(R) destroyed. 04191_ Acquired 42 matter. 04198_ ZD-X5D(R): "OHNO!" 04211_ ZD-X5D(R) destroyed. 04214_ Acquired 3 matter. 04247_ 27-P37(R) suffers critical hit (Destroy). 04250_ YT-E00(R) destroyed. 04250_ Switching to secondary target: 27-P37(R). 04256_ 27-P37(R) affixes Scrap Shield Fragment to Scrap Shield. 04259_ 27-P37(R) destroyed. 04263_ Acquired 18 matter. 04265_ Acquired 35 matter. 04368_ Sub. Monowheel shoots sparks and powers down. 04509_ Critical hit (Destroy). 04509_ Hvy. Battle Rifle destroyed. Map ----- +----------------------------------------------------+ | ## ##### ## ##?????????????? | | ??## ## ### ## ##?????????? | | ### ### ### #### #?????????? | | # ## ##?## ## #?????????? | | # #???## ##?????????? | | #????# ###??????????? | | #????# ### ##????????????? | | &####?# ## ##?# #?????????????? | | # # ### ####??# #?????????????? | | ## ##" " ### ####?## ????????????? | | ?## ### ## ##?# #??????????? | | ??# ##" ?? ?????????? | | ?## ## " ???? ????????? | | ## #### ### ??? ## #???????? | | #??# #??# ??# ###??????????? | | ###??# #???##??? ##????????????? | | ######## ## ##??????? ##?????????????? | | #?# ## ### #???????? #??????????????? | | ##?# ##?## #????????????????????????? | | ### ##???## #????????????????????????? | | ## ## #?????# #??####??????????????????? | | ?# ## #?????## ### #??????????????????? | | #### ####???## #??????????????????? | | #?# #????## ##?????????????????? | | ### ###?????## "###???????????????? | | ### ##????????##@ " " #????????????? | | #?## ##??????????# ##" "#?????????????? | | ##??# ###???????????#R ##??"""##?????????????? | | #??# ##????????????? ###????#????????????????? | | ### ####?????????????? ????????????????????????? | | # ?????????????????? ????????????????????????? | | ## ?????????????????? ????????????????????????? | | ### "????????????????? ????????????????????????? | | ###"#???????????????? ????????????????????????? | | #??"####?????????????#?????????????????????????? | | ##?# " ##??????????????????????????????????????? | | ##" #??????????????????????????????????????? | | "" #??????????????????????????????????????? | | """ #??????????????????????????????????????? | | """ ##??????????????????????????????????????? | | #####""##???????????????????????????????????????? | | ##?????##????????????????????????????????????????? | | ?????????????????????????????????????????????????? | | ?????????????????????????????????????????????????? | | ?????????????????????????????????????????????????? | | ?????????????????????????????????????????????????? | | ?????????????????????????????????????????????????? | | ?????????????????????????????????????????????????? | | ?????????????????????????????????????????????????? | | ?????????????????????????????????????????????????? | +----------------------------------------------------+ Best States ------------- Heat Dissipation 25 Energy Generation 15 Energy Capacity 265 Matter Stores 300 Matter Capacity 300 Sight Range 16 Terrain Scan Density 10 Armor Coverage 225 Evasion (%) 50 Recoil Reduction 2 Item Schematics ----------------- None Robot Schematics ------------------ None Fabricated ------------ Nothing Alien Tech Used ----------------- None Achievements -------------- None Challenges ------------ None Game ------ Seed MiniThiefReconfigurator Manual? 0 Play Time 00:29:15 Cumulative 34.0 hours Start 2025.03.15 @ 09:01:20 End 2025.03.15 @ 09:32:32 Sessions 1 Manual Loads 0 Difficulty Rogue Special Mode None Game No. 62 Rogue 62 Adventurer 0 Explorer 0 Win Type - Total 0 Types 0/0/0/0/0/0/0/0/0 Lore% 34 Gallery% 36 Achievement% 33 Wizard Run 0 Options --------- Layout 0 ASCII 0 Keyboard 0 Movement Mouse Keybinds 0 Fullscreen 1 Font 16/SmallcapsGlow Map View 75x55 Zoom Use 0% Tactical HUD 1 Map Filters NONE Filters NONE Steam 1 RUN: 3a4f56ba-6a79-42e9-bcef-45894bf26b22